[Event "*** Titled Tuesday Blitz"]
[Site "Chess.com"]
[Date "2020.11.03"]
[Round "4"]
[White "Lysiak_Poltorak"]
[Black "abykhovsky"]
[Result "1-0"]
[WhiteElo "2370"]
[BlackElo "2708"]
[TimeControl "180+1"]
[EndTime "10:40:12 PST"]
[Termination "Lysiak_Poltorak won by resignation"]

1. d4 {[%clk 0:03:00.9]} 1... d5 {[%clk 0:03:00]} 2. c4 {[%clk 0:03:00.5]} 2...
c6 {[%clk 0:02:57.1]} 3. Nc3 {[%clk 0:03:00.2]} 3... Nf6 {[%clk 0:02:57.1]} 4.
cxd5 {[%clk 0:02:58.5]} 4... cxd5 {[%clk 0:02:57.6]} 5. Bg5 {[%clk 0:02:59.1]}
5... Nc6 {[%clk 0:02:57.5]} 6. Bxf6 {[%clk 0:02:59]} 6... gxf6 {[%clk
0:02:56.8]} 7. e3 {[%clk 0:02:59.6]} 7... e6 {[%clk 0:02:57.3]} 8. Bd3 {[%clk
0:02:58.1]} 8... f5 {[%clk 0:02:57.4]} 9. Nge2 {[%clk 0:02:58]} 9... Bd6 {[%clk
0:02:56.7]} 10. Rc1 {[%clk 0:02:57.3]} 10... a6 {[%clk 0:02:56.7]} 11. a3 {[%clk
0:02:57.7]} 11... Bd7 {[%clk 0:02:57.1]} 12. Na4 {[%clk 0:02:56.6]} 12... b6
{[%clk 0:02:54.1]} 13. b4 {[%clk 0:02:53]} 13... a5 {[%clk 0:02:40.9]} 14. b5
{[%clk 0:02:31.9]} 14... Ne7 {[%clk 0:02:39.6]} 15. Qb3 {[%clk 0:02:29.6]} 15...
Ng6 {[%clk 0:02:35.5]} 16. O-O {[%clk 0:02:27]} 16... Rb8 {[%clk 0:02:34.9]} 17.
Nc5 {[%clk 0:02:23.7]} 17... bxc5 {[%clk 0:02:33.4]} 18. dxc5 {[%clk 0:02:24.6]}
18... Bc7 {[%clk 0:02:26.1]} 19. b6 {[%clk 0:02:21.6]} 19... Bxb6 {[%clk
0:02:09.5]} 20. cxb6 {[%clk 0:02:21.5]} 20... Qxb6 {[%clk 0:02:10.1]} 21. Qc3
{[%clk 0:02:19.8]} 21... O-O {[%clk 0:02:07.5]} 22. Nf4 {[%clk 0:02:07.6]} 22...
Rfc8 {[%clk 0:01:55.6]} 23. Qf6 {[%clk 0:02:04.1]} 23... Rxc1 {[%clk 0:01:55.4]}
24. Rxc1 {[%clk 0:01:48.5]} 24... Qb2 {[%clk 0:01:54.1]} 25. Qxb2 {[%clk
0:01:39.6]} 25... Rxb2 {[%clk 0:01:55]} 26. Nh5 {[%clk 0:01:36.8]} 26... Kf8
{[%clk 0:01:51.5]} 27. Nf6 {[%clk 0:01:35]} 27... Ke7 {[%clk 0:01:51.3]} 28.
Nxh7 {[%clk 0:01:34.1]} 28... Ne5 {[%clk 0:01:43.8]} 29. Bf1 {[%clk 0:01:30.4]}
29... Ng4 {[%clk 0:01:44.1]} 30. Rc7 {[%clk 0:01:23.4]} 30... Kd6 {[%clk
0:01:43]} 31. Ra7 {[%clk 0:01:23]} 31... Rb1 {[%clk 0:01:43.4]} 32. Rxa5 {[%clk
0:01:13.5]} 32... f4 {[%clk 0:01:36.2]} 33. exf4 {[%clk 0:01:11.1]} 33... d4
{[%clk 0:01:36.3]} 34. Nf6 {[%clk 0:01:07.4]} 34... Bc6 {[%clk 0:01:33.2]} 35.
Nxg4 {[%clk 0:01:06.8]} 35... d3 {[%clk 0:01:26.2]} 36. Ne5 {[%clk 0:01:00.1]}
36... Be4 {[%clk 0:01:21.2]} 37. f3 {[%clk 0:00:59.4]} 1-0

[Event "*** Titled Tuesday Blitz"]
[Site "Chess.com"]
[Date "2020.11.03"]
[Round "4"]
[White "ChessWarrior7197"]
[Black "Harsha_Bharathakoti"]
[Result "1-0"]
[WhiteElo "3004"]
[BlackElo "2807"]
[TimeControl "180+1"]
[EndTime "10:40:19 PST"]
[Termination "ChessWarrior7197 won by resignation"]

1. e4 {[%clk 0:03:00.9]} 1... c5 {[%clk 0:02:58.2]} 2. Nf3 {[%clk 0:02:59.6]}
2... d6 {[%clk 0:02:58.5]} 3. d4 {[%clk 0:02:59.5]} 3... cxd4 {[%clk 0:02:59.4]}
4. Nxd4 {[%clk 0:02:59.8]} 4... Nf6 {[%clk 0:02:59.5]} 5. Nc3 {[%clk 0:03:00.4]}
5... a6 {[%clk 0:03:00.2]} 6. Be3 {[%clk 0:02:59.7]} 6... e5 {[%clk 0:03:00]} 7.
Nb3 {[%clk 0:02:59.5]} 7... Be6 {[%clk 0:02:59.9]} 8. Qd2 {[%clk 0:02:59.3]}
8... Nbd7 {[%clk 0:02:58.5]} 9. O-O-O {[%clk 0:02:58.8]} 9... Be7 {[%clk
0:02:42.9]} 10. f3 {[%clk 0:02:58.5]} 10... h5 {[%clk 0:02:42.7]} 11. g3 {[%clk
0:02:57.2]} 11... Rc8 {[%clk 0:02:38.9]} 12. Kb1 {[%clk 0:02:56.7]} 12... b5
{[%clk 0:02:38.9]} 13. Nd5 {[%clk 0:02:56.6]} 13... Bxd5 {[%clk 0:02:35]} 14.
exd5 {[%clk 0:02:57.5]} 14... Nb6 {[%clk 0:02:11.9]} 15. Bxb6 {[%clk 0:02:57.1]}
15... Qxb6 {[%clk 0:02:12.8]} 16. Bh3 {[%clk 0:02:57.5]} 16... Rc7 {[%clk
0:02:10.3]} 17. Rhe1 {[%clk 0:02:53]} 17... O-O {[%clk 0:02:02.3]} 18. f4 {[%clk
0:02:52]} 18... Rd8 {[%clk 0:01:37]} 19. Bg2 {[%clk 0:02:13.8]} 19... b4 {[%clk
0:01:28]} 20. fxe5 {[%clk 0:02:04.9]} 20... dxe5 {[%clk 0:01:28.9]} 21. Rxe5
{[%clk 0:02:05.4]} 21... Ng4 {[%clk 0:00:31.6]} 22. Re2 {[%clk 0:01:53.8]} 22...
Bf6 {[%clk 0:00:26.4]} 23. Rde1 {[%clk 0:01:37.7]} 23... g6 {[%clk 0:00:25.2]}
24. h3 {[%clk 0:01:34.3]} 24... Ne5 {[%clk 0:00:17.3]} 25. Rxe5 {[%clk
0:01:34.3]} 25... Bxe5 {[%clk 0:00:18.2]} 26. Rxe5 {[%clk 0:01:35.1]} 26... a5
{[%clk 0:00:18.4]} 27. Nd4 {[%clk 0:01:34.8]} 27... Qf6 {[%clk 0:00:15.5]} 28.
Qf4 {[%clk 0:01:30.5]} 28... Qd6 {[%clk 0:00:13]} 29. Nb5 {[%clk 0:01:29.8]} 1-0

[Event "*** Titled Tuesday Blitz"]
[Site "Chess.com"]
[Date "2020.11.03"]
[Round "4"]
[White "Kotofeyca"]
[Black "Vanina1989"]
[Result "0-1"]
[WhiteElo "2375"]
[BlackElo "2607"]
[TimeControl "180+1"]
[EndTime "10:40:21 PST"]
[Termination "Vanina1989 won by checkmate"]

1. d4 {[%clk 0:03:00.9]} 1... Nf6 {[%clk 0:02:59.4]} 2. c4 {[%clk 0:02:59.7]}
2... e6 {[%clk 0:02:59.5]} 3. Nf3 {[%clk 0:02:59.7]} 3... d5 {[%clk 0:02:59.7]}
4. Nc3 {[%clk 0:02:59.3]} 4... c6 {[%clk 0:02:54.2]} 5. cxd5 {[%clk 0:02:58.8]}
5... exd5 {[%clk 0:02:50.8]} 6. Qc2 {[%clk 0:02:58.5]} 6... Bd6 {[%clk
0:02:49.7]} 7. Bg5 {[%clk 0:02:58.4]} 7... h6 {[%clk 0:02:48.8]} 8. Bxf6 {[%clk
0:02:53.4]} 8... Qxf6 {[%clk 0:02:48.1]} 9. Nxd5 {[%clk 0:02:51.6]} 9... Qe6
{[%clk 0:02:11.2]} 10. Nc3 {[%clk 0:02:48.1]} 10... O-O {[%clk 0:02:10.7]} 11.
e3 {[%clk 0:02:36.6]} 11... c5 {[%clk 0:01:54.6]} 12. Be2 {[%clk 0:02:28.4]}
12... Nc6 {[%clk 0:01:40.2]} 13. d5 {[%clk 0:02:13]} 13... Nb4 {[%clk
0:01:40.1]} 14. Qd2 {[%clk 0:02:11.3]} 14... Qg6 {[%clk 0:01:39.3]} 15. a3
{[%clk 0:02:10.7]} 15... Nc2+ {[%clk 0:01:37.1]} 16. Kf1 {[%clk 0:02:03.7]}
16... Nxa1 {[%clk 0:01:37]} 17. Bd3 {[%clk 0:02:00.8]} 17... Qf6 {[%clk
0:01:32.7]} 18. Qd1 {[%clk 0:01:59]} 18... Bg4 {[%clk 0:01:29]} 19. Ke2 {[%clk
0:01:44.2]} 19... Rac8 {[%clk 0:01:19.7]} 20. Qxa1 {[%clk 0:01:41.9]} 20... c4
{[%clk 0:01:20.1]} 21. Bc2 {[%clk 0:01:39.8]} 21... Be5 {[%clk 0:01:18.6]} 22.
h3 {[%clk 0:01:33.1]} 22... Bxf3+ {[%clk 0:01:10]} 23. gxf3 {[%clk 0:01:34]}
23... Bxc3 {[%clk 0:01:09]} 24. bxc3 {[%clk 0:01:33.1]} 24... Rfd8 {[%clk
0:01:09.3]} 25. Be4 {[%clk 0:01:26]} 25... Qe5 {[%clk 0:01:07.6]} 26. Qb2 {[%clk
0:01:22.6]} 26... f5 {[%clk 0:01:05.1]} 27. Bb1 {[%clk 0:01:11.7]} 27... Qxd5
{[%clk 0:01:04.9]} 28. Rg1 {[%clk 0:01:00.1]} 28... Rc6 {[%clk 0:01:00.6]} 29.
Qxb7 {[%clk 0:00:49.8]} 29... Qd2+ {[%clk 0:00:56.8]} 30. Kf1 {[%clk 0:00:49.4]}
30... Qd1+ {[%clk 0:00:57.1]} 31. Kg2 {[%clk 0:00:48.8]} 31... Rg6+ {[%clk
0:00:57.2]} 32. Kh2 {[%clk 0:00:44.1]} 32... Qxg1# {[%clk 0:00:57.3]} 0-1

[Event "*** Titled Tuesday Blitz"]
[Site "Chess.com"]
[Date "2020.11.03"]
[Round "4"]
[White "BJthechessgod"]
[Black "infinitegiantkiller"]
[Result "0-1"]
[WhiteElo "2296"]
[BlackElo "2458"]
[TimeControl "180+1"]
[EndTime "10:40:24 PST"]
[Termination "infinitegiantkiller won by checkmate"]

1. e4 {[%clk 0:03:00.9]} 1... e6 {[%clk 0:03:00.9]} 2. d4 {[%clk 0:03:00.7]}
2... d5 {[%clk 0:03:01.7]} 3. Nc3 {[%clk 0:03:01.3]} 3... Nf6 {[%clk 0:03:01.7]}
4. e5 {[%clk 0:03:01.8]} 4... Nfd7 {[%clk 0:03:01.8]} 5. f4 {[%clk 0:03:02.7]}
5... c5 {[%clk 0:03:02.2]} 6. Nf3 {[%clk 0:03:03.6]} 6... Nc6 {[%clk 0:03:02.7]}
7. Be3 {[%clk 0:03:04.2]} 7... a6 {[%clk 0:03:03.6]} 8. Qd2 {[%clk 0:03:02.7]}
8... b5 {[%clk 0:03:03.6]} 9. a3 {[%clk 0:03:02.7]} 9... Qb6 {[%clk 0:03:03.9]}
10. Nd1 {[%clk 0:03:03.3]} 10... cxd4 {[%clk 0:02:59.2]} 11. Nxd4 {[%clk
0:03:03.2]} 11... Bc5 {[%clk 0:02:59.6]} 12. c3 {[%clk 0:03:03.6]} 12... Qc7
{[%clk 0:02:39.5]} 13. Be2 {[%clk 0:03:00.3]} 13... O-O {[%clk 0:02:38.7]} 14.
O-O {[%clk 0:02:28.8]} 14... Nxd4 {[%clk 0:02:35.1]} 15. Bxd4 {[%clk 0:02:26.8]}
15... f6 {[%clk 0:02:34.5]} 16. exf6 {[%clk 0:02:19.8]} 16... Nxf6 {[%clk
0:02:27.1]} 17. Nf2 {[%clk 0:02:12.7]} 17... Bd7 {[%clk 0:02:19.8]} 18. Rae1
{[%clk 0:02:02.5]} 18... Rae8 {[%clk 0:02:19]} 19. Qe3 {[%clk 0:01:52.6]} 19...
Bd6 {[%clk 0:02:16.1]} 20. Nd3 {[%clk 0:01:48.5]} 20... Ne4 {[%clk 0:02:13.1]}
21. g3 {[%clk 0:01:35.8]} 21... a5 {[%clk 0:01:49.4]} 22. Bf3 {[%clk 0:01:16.7]}
22... Bc6 {[%clk 0:01:40.4]} 23. Bxe4 {[%clk 0:01:15.5]} 23... dxe4 {[%clk
0:01:40.2]} 24. Nc5 {[%clk 0:01:10.9]} 24... Bd5 {[%clk 0:01:35.6]} 25. Nxe4
{[%clk 0:01:09.6]} 25... e5 {[%clk 0:01:35.3]} 26. fxe5 {[%clk 0:01:08.3]} 26...
Bxe5 {[%clk 0:01:35.2]} 27. Bc5 {[%clk 0:01:03.9]} 27... Rxf1+ {[%clk
0:01:34.4]} 28. Kxf1 {[%clk 0:00:49.5]} 28... Bxe4 {[%clk 0:01:34.2]} 29. Bb6
{[%clk 0:00:46.9]} 29... Qc4+ {[%clk 0:01:32]} 30. Kg1 {[%clk 0:00:46.6]} 30...
Bf6 {[%clk 0:01:24.5]} 31. Qf4 {[%clk 0:00:40.8]} 31... Qc6 {[%clk 0:01:17.5]}
32. Bxa5 {[%clk 0:00:38.2]} 32... Bd3 {[%clk 0:01:12]} 33. Rxe8+ {[%clk
0:00:26.5]} 33... Qxe8 {[%clk 0:01:12.9]} 34. Qd6 {[%clk 0:00:25.2]} 34... Qe1+
{[%clk 0:01:10]} 35. Kg2 {[%clk 0:00:26.1]} 35... Qf1# {[%clk 0:01:10.3]} 0-1

[Event "*** Titled Tuesday Blitz"]
[Site "Chess.com"]
[Date "2020.11.03"]
[Round "4"]
[White "karwowskikacper"]
[Black "glebus008"]
[Result "1-0"]
[WhiteElo "2463"]
[BlackElo "2303"]
[TimeControl "180+1"]
[EndTime "10:40:25 PST"]
[Termination "karwowskikacper won by resignation"]

1. e4 {[%clk 0:03:00.9]} 1... c5 {[%clk 0:02:59.5]} 2. Nf3 {[%clk 0:03:00.6]}
2... e6 {[%clk 0:02:59.8]} 3. d4 {[%clk 0:02:58.6]} 3... cxd4 {[%clk 0:03:00.7]}
4. Nxd4 {[%clk 0:02:59.5]} 4... Nf6 {[%clk 0:02:59.7]} 5. Nc3 {[%clk 0:02:58.7]}
5... d6 {[%clk 0:03:00]} 6. Be2 {[%clk 0:02:57.3]} 6... Be7 {[%clk 0:02:59.2]}
7. O-O {[%clk 0:02:57.4]} 7... O-O {[%clk 0:02:59.1]} 8. Kh1 {[%clk 0:02:57.1]}
8... Nc6 {[%clk 0:02:51.8]} 9. Be3 {[%clk 0:02:53.1]} 9... Bd7 {[%clk
0:02:51.5]} 10. Qd2 {[%clk 0:02:31.3]} 10... Nxd4 {[%clk 0:02:49.3]} 11. Bxd4
{[%clk 0:02:32.2]} 11... Bc6 {[%clk 0:02:50]} 12. f3 {[%clk 0:02:31.7]} 12...
Qb8 {[%clk 0:02:43.8]} 13. Rfd1 {[%clk 0:02:28.5]} 13... b5 {[%clk 0:02:40.5]}
14. Bxf6 {[%clk 0:02:20.8]} 14... gxf6 {[%clk 0:02:31.4]} 15. Qh6 {[%clk
0:02:14.2]} 15... Kh8 {[%clk 0:02:29.2]} 16. Bd3 {[%clk 0:02:07.4]} 16... Rg8
{[%clk 0:02:12.1]} 17. Nd5 {[%clk 0:01:26.3]} 17... Rg6 {[%clk 0:02:00]} 18. Qh3
{[%clk 0:01:24.8]} 18... exd5 {[%clk 0:01:55.6]} 19. exd5 {[%clk 0:01:25.7]}
19... Bb7 {[%clk 0:01:47.7]} 20. Bxg6 {[%clk 0:01:21.5]} 20... fxg6 {[%clk
0:01:48.6]} 21. Qd7 {[%clk 0:01:21.8]} 21... Bf8 {[%clk 0:01:30.6]} 22. Qxb5
{[%clk 0:01:08]} 22... Bg7 {[%clk 0:01:13.7]} 23. Re1 {[%clk 0:01:02.5]} 23...
f5 {[%clk 0:01:07.6]} 24. Re7 {[%clk 0:00:52.7]} 1-0

[Event "*** Titled Tuesday Blitz"]
[Site "Chess.com"]
[Date "2020.11.03"]
[Round "4"]
[White "Dr-Bassem"]
[Black "Duhless"]
[Result "0-1"]
[WhiteElo "2797"]
[BlackElo "3001"]
[TimeControl "180+1"]
[EndTime "10:40:32 PST"]
[Termination "Duhless won by checkmate"]

1. e4 {[%clk 0:03:00.9]} 1... c5 {[%clk 0:02:59.2]} 2. Nf3 {[%clk 0:03:01.3]}
2... Nc6 {[%clk 0:02:58.8]} 3. g3 {[%clk 0:02:58.6]} 3... Nf6 {[%clk 0:02:57.8]}
4. d3 {[%clk 0:02:57.6]} 4... d5 {[%clk 0:02:57]} 5. Nbd2 {[%clk 0:02:56.5]}
5... g6 {[%clk 0:02:52.9]} 6. Bg2 {[%clk 0:02:56.6]} 6... Bg7 {[%clk 0:02:53.5]}
7. O-O {[%clk 0:02:57]} 7... O-O {[%clk 0:02:54.1]} 8. Re1 {[%clk 0:02:57.4]}
8... Qc7 {[%clk 0:02:52.8]} 9. c3 {[%clk 0:02:51.7]} 9... e5 {[%clk 0:02:49.3]}
10. a3 {[%clk 0:02:44.7]} 10... Rd8 {[%clk 0:02:42.2]} 11. b4 {[%clk 0:02:36.4]}
11... dxe4 {[%clk 0:02:42]} 12. dxe4 {[%clk 0:02:35.9]} 12... b6 {[%clk
0:02:39.5]} 13. Qe2 {[%clk 0:02:23.4]} 13... h6 {[%clk 0:02:32.3]} 14. Rb1
{[%clk 0:02:01.3]} 14... Be6 {[%clk 0:02:30]} 15. bxc5 {[%clk 0:01:49.7]} 15...
Na5 {[%clk 0:02:21.2]} 16. cxb6 {[%clk 0:01:48.2]} 16... axb6 {[%clk 0:02:22.1]}
17. Bf1 {[%clk 0:01:39.6]} 17... Bf8 {[%clk 0:02:16.3]} 18. Qb5 {[%clk
0:01:21.8]} 18... Bc5 {[%clk 0:02:14.5]} 19. h3 {[%clk 0:01:13.9]} 19... Qc8
{[%clk 0:01:57.4]} 20. Nxe5 {[%clk 0:01:05.6]} 20... Bxh3 {[%clk 0:01:56.3]} 21.
Nb3 {[%clk 0:00:49.7]} 21... Bxf1 {[%clk 0:01:48.4]} 22. Rxf1 {[%clk 0:00:41.4]}
22... Nxb3 {[%clk 0:01:29]} 23. Qxb3 {[%clk 0:00:42.3]} 23... Qc7 {[%clk
0:01:29.3]} 24. Nxg6 {[%clk 0:00:40.9]} 24... Qxg3+ {[%clk 0:01:28.2]} 25. Kh1
{[%clk 0:00:35.4]} 25... Qf3+ {[%clk 0:01:13.9]} 26. Kg1 {[%clk 0:00:31.2]}
26... Ng4 {[%clk 0:01:04.2]} 27. Rb2 {[%clk 0:00:16.4]} 27... Qg3+ {[%clk
0:01:03.1]} 28. Kh1 {[%clk 0:00:15.9]} 28... Qh2# {[%clk 0:01:04]} 0-1

[Event "*** Titled Tuesday Blitz"]
[Site "Chess.com"]
[Date "2020.11.03"]
[Round "4"]
[White "GMKrikor"]
[Black "hansen"]
[Result "0-1"]
[WhiteElo "2767"]
[BlackElo "2949"]
[TimeControl "180+1"]
[EndTime "10:40:35 PST"]
[Termination "hansen won by resignation"]

1. e4 {[%clk 0:03:00.9]} 1... c5 {[%clk 0:02:55.7]} 2. Nf3 {[%clk 0:02:56]} 2...
e6 {[%clk 0:02:55.6]} 3. d4 {[%clk 0:02:55.8]} 3... cxd4 {[%clk 0:02:55.2]} 4.
Nxd4 {[%clk 0:02:56.7]} 4... a6 {[%clk 0:02:55.7]} 5. Bd3 {[%clk 0:02:56]} 5...
Qc7 {[%clk 0:02:51.9]} 6. O-O {[%clk 0:02:55.4]} 6... Nf6 {[%clk 0:02:52.2]} 7.
Qe2 {[%clk 0:02:50.2]} 7... d6 {[%clk 0:02:51.9]} 8. c4 {[%clk 0:02:50.1]} 8...
Nbd7 {[%clk 0:02:51.6]} 9. Nc3 {[%clk 0:02:50.2]} 9... Be7 {[%clk 0:02:50]} 10.
Bd2 {[%clk 0:02:49.2]} 10... b6 {[%clk 0:02:50.1]} 11. Kh1 {[%clk 0:02:49.2]}
11... h5 {[%clk 0:02:49.1]} 12. f4 {[%clk 0:02:44.4]} 12... h4 {[%clk
0:02:48.9]} 13. Rae1 {[%clk 0:02:39.5]} 13... Bb7 {[%clk 0:02:47.9]} 14. f5
{[%clk 0:02:24.3]} 14... Nc5 {[%clk 0:02:39.6]} 15. Bb1 {[%clk 0:02:02.9]} 15...
h3 {[%clk 0:02:36.2]} 16. b4 {[%clk 0:01:29.6]} 16... e5 {[%clk 0:02:20.3]} 17.
bxc5 {[%clk 0:01:19.2]} 17... exd4 {[%clk 0:02:20.5]} 18. Nd5 {[%clk 0:01:19.3]}
18... Bxd5 {[%clk 0:02:15]} 19. cxd6 {[%clk 0:00:57.9]} 19... hxg2+ {[%clk
0:02:11.4]} 20. Qxg2 {[%clk 0:00:55.3]} 20... Bxd6 {[%clk 0:02:08.7]} 21. exd5+
{[%clk 0:00:50.8]} 21... Kd7 {[%clk 0:01:49.8]} 22. h3 {[%clk 0:00:41.8]} 22...
Qxc4 {[%clk 0:01:44.4]} 23. Rf3 {[%clk 0:00:34.8]} 23... Rae8 {[%clk 0:01:37.1]}
24. Qxg7 {[%clk 0:00:27]} 24... Rxe1+ {[%clk 0:01:30.5]} 25. Bxe1 {[%clk
0:00:26.8]} 25... Rxh3+ {[%clk 0:01:30.8]} 26. Kg1 {[%clk 0:00:09.1]} 26... Rxf3
{[%clk 0:01:13.8]} 27. Qxf7+ {[%clk 0:00:08.7]} 27... Kc8 {[%clk 0:01:09.3]} 28.
Qe6+ {[%clk 0:00:04.9]} 0-1

[Event "*** Titled Tuesday Blitz"]
[Site "Chess.com"]
[Date "2020.11.03"]
[Round "4"]
[White "RamyresCoelho"]
[Black "dopolian"]
[Result "1-0"]
[WhiteElo "2063"]
[BlackElo "2363"]
[TimeControl "180+1"]
[EndTime "10:40:36 PST"]
[Termination "RamyresCoelho won by resignation"]

1. e4 {[%clk 0:03:00]} 1... e5 {[%clk 0:02:57.5]} 2. Nf3 {[%clk 0:02:59.9]} 2...
Nc6 {[%clk 0:02:57.8]} 3. d4 {[%clk 0:02:59.5]} 3... exd4 {[%clk 0:02:58.4]} 4.
Bc4 {[%clk 0:02:59.8]} 4... Nf6 {[%clk 0:02:57.7]} 5. e5 {[%clk 0:02:59.8]} 5...
d5 {[%clk 0:02:57.3]} 6. Bb5 {[%clk 0:02:59.5]} 6... Ne4 {[%clk 0:02:56]} 7.
Nxd4 {[%clk 0:02:59.4]} 7... Bd7 {[%clk 0:02:55.4]} 8. Bxc6 {[%clk 0:02:58.4]}
8... bxc6 {[%clk 0:02:55.2]} 9. O-O {[%clk 0:02:58.9]} 9... Bc5 {[%clk 0:02:54]}
10. f3 {[%clk 0:02:59.3]} 10... Ng5 {[%clk 0:02:53.8]} 11. f4 {[%clk 0:02:59.9]}
11... Ne4 {[%clk 0:02:54.5]} 12. Nc3 {[%clk 0:03:00]} 12... Nxc3 {[%clk
0:02:52.4]} 13. bxc3 {[%clk 0:03:00.9]} 13... Bb6 {[%clk 0:02:52.6]} 14. f5
{[%clk 0:03:00.5]} 14... c5 {[%clk 0:02:51.9]} 15. Nb3 {[%clk 0:02:55.8]} 15...
c4+ {[%clk 0:02:45]} 16. Nd4 {[%clk 0:02:54.4]} 16... O-O {[%clk 0:02:40.5]} 17.
f6 {[%clk 0:02:50.2]} 17... g6 {[%clk 0:02:32.8]} 18. Qd2 {[%clk 0:02:38.9]}
18... Kh8 {[%clk 0:02:20.8]} 19. Qh6 {[%clk 0:02:38.1]} 19... Rg8 {[%clk
0:02:20.8]} 20. Rf4 {[%clk 0:02:20.7]} 20... g5 {[%clk 0:02:13.6]} 21. Rf3
{[%clk 0:02:01.3]} 21... Qf8 {[%clk 0:02:03.1]} 22. Bxg5 {[%clk 0:01:47.4]}
22... Qxh6 {[%clk 0:02:00.9]} 23. Bxh6 {[%clk 0:01:48.3]} 23... Rg6 {[%clk
0:02:01.3]} 24. Bg7+ {[%clk 0:01:46.4]} 24... Kg8 {[%clk 0:02:01.5]} 25. Re1
{[%clk 0:01:41.7]} 25... Re8 {[%clk 0:02:00.3]} 26. Kh1 {[%clk 0:01:32.7]} 26...
c5 {[%clk 0:01:39.2]} 27. Nf5 {[%clk 0:01:24.9]} 27... Be6 {[%clk 0:01:39.1]}
28. Ne7+ {[%clk 0:01:12.5]} 28... Rxe7 {[%clk 0:01:38.6]} 29. fxe7 {[%clk
0:01:13.4]} 29... Bd7 {[%clk 0:01:39]} 30. Bf6 {[%clk 0:01:10.6]} 30... d4
{[%clk 0:01:17.4]} 31. Rg3 {[%clk 0:01:06.3]} 31... Ba5 {[%clk 0:01:01.4]} 32.
Rxg6+ {[%clk 0:01:05.3]} 32... fxg6 {[%clk 0:00:53.3]} 33. Rb1 {[%clk
0:00:56.9]} 33... dxc3 {[%clk 0:00:37.5]} 1-0

[Event "*** Titled Tuesday Blitz"]
[Site "Chess.com"]
[Date "2020.11.03"]
[Round "4"]
[White "winniethepooh04"]
[Black "ApacheSVD"]
[Result "0-1"]
[WhiteElo "2232"]
[BlackElo "2416"]
[TimeControl "180+1"]
[EndTime "10:40:41 PST"]
[Termination "ApacheSVD won by resignation"]

1. d4 {[%clk 0:03:00.9]} 1... Nf6 {[%clk 0:02:59.9]} 2. Nf3 {[%clk 0:02:59]}
2... c5 {[%clk 0:02:51.9]} 3. c3 {[%clk 0:02:58.2]} 3... d5 {[%clk 0:02:49.7]}
4. Bf4 {[%clk 0:02:58.2]} 4... Nc6 {[%clk 0:02:49.9]} 5. e3 {[%clk 0:02:58.3]}
5... e6 {[%clk 0:02:50.6]} 6. Nbd2 {[%clk 0:02:58.1]} 6... cxd4 {[%clk 0:02:51]}
7. exd4 {[%clk 0:02:57.7]} 7... Nh5 {[%clk 0:02:51.9]} 8. Be3 {[%clk 0:02:55.8]}
8... Bd6 {[%clk 0:02:51.6]} 9. Bd3 {[%clk 0:02:55.2]} 9... Nf4 {[%clk
0:02:51.3]} 10. Bxf4 {[%clk 0:02:54.7]} 10... Bxf4 {[%clk 0:02:52.2]} 11. O-O
{[%clk 0:02:54.8]} 11... Qf6 {[%clk 0:02:46.9]} 12. Re1 {[%clk 0:02:52.7]} 12...
O-O {[%clk 0:02:43.4]} 13. Nf1 {[%clk 0:02:52.5]} 13... a6 {[%clk 0:02:42.5]}
14. a4 {[%clk 0:02:51.9]} 14... Rb8 {[%clk 0:02:42.4]} 15. Qe2 {[%clk
0:02:46.9]} 15... Bd7 {[%clk 0:02:41.4]} 16. Ne5 {[%clk 0:02:46]} 16... Rfd8
{[%clk 0:02:34.3]} 17. g3 {[%clk 0:02:40.8]} 17... Bxe5 {[%clk 0:02:32.3]} 18.
dxe5 {[%clk 0:02:40.5]} 18... Qe7 {[%clk 0:02:33.2]} 19. Ne3 {[%clk 0:02:35.7]}
19... Qc5 {[%clk 0:02:19.5]} 20. Qh5 {[%clk 0:02:27.2]} 20... g6 {[%clk
0:02:17.3]} 21. Qg5 {[%clk 0:02:26.3]} 21... Qe7 {[%clk 0:02:08.2]} 22. Qf4
{[%clk 0:02:17.3]} 22... g5 {[%clk 0:01:59.6]} 23. Qg4 {[%clk 0:01:53.8]} 23...
Nxe5 {[%clk 0:01:52.1]} 24. Qe2 {[%clk 0:01:39.1]} 24... Nxd3 {[%clk 0:01:51]}
25. Qxd3 {[%clk 0:01:38.2]} 25... Qf6 {[%clk 0:01:38.7]} 26. Ng4 {[%clk
0:01:34.8]} 26... Qg7 {[%clk 0:01:38.3]} 27. a5 {[%clk 0:01:26.8]} 27... Bb5
{[%clk 0:01:35.8]} 28. Qf3 {[%clk 0:01:24.3]} 28... Rbc8 {[%clk 0:01:32.6]} 29.
Re5 {[%clk 0:01:15.8]} 29... h6 {[%clk 0:01:28.4]} 30. Rae1 {[%clk 0:01:10.9]}
30... Rc4 {[%clk 0:01:24.4]} 31. Nf6+ {[%clk 0:01:10.1]} 31... Kh8 {[%clk
0:01:20.7]} 32. b3 {[%clk 0:00:54.5]} 32... Rc7 {[%clk 0:01:14.7]} 33. Nh5
{[%clk 0:00:51]} 33... Qg6 {[%clk 0:01:13.1]} 34. Kh1 {[%clk 0:00:48.2]} 34...
Bc6 {[%clk 0:01:11.2]} 35. Qf6+ {[%clk 0:00:40.5]} 35... Qxf6 {[%clk 0:01:08.6]}
36. Nxf6 {[%clk 0:00:41.4]} 36... d4+ {[%clk 0:01:09.1]} 37. Kg1 {[%clk
0:00:40.3]} 37... dxc3 {[%clk 0:01:09.1]} 38. Rc1 {[%clk 0:00:38.8]} 38... c2
{[%clk 0:01:09.3]} 39. Re2 {[%clk 0:00:37.9]} 39... Bf3 {[%clk 0:01:07.9]} 40.
Rexc2 {[%clk 0:00:37.4]} 40... Rxc2 {[%clk 0:01:07.7]} 0-1